fUSD/lending_fUSD_20250930
["ID","MTS","AMOUNT","RATE_DAILY","PERIOD"]
[388566662,1759243852168,-500.0,0.00019178,2]
[388566663,1759243852178,-696.76,0.00019178,2]
[388566664,1759243852187,-500.0,0.00019178,2]
[388566665,1759243852196,-500.0,0.00019178,2]
[388566666,1759243852206,-2799.17,0.00019178,2]
[388566667,1759243852215,-934.85,0.00019178,2]
[388566668,1759243852225,-500.0,0.00019178,2]
[388566669,1759243852234,-500.0,0.00019178,2]
[388566670,1759243852243,-500.0,0.00019178,2]
[388566671,1759243852253,-1633.53,0.00019178,2]
[388566672,1759243852263,-1137.08,0.00019178,2]
[388566673,1759243852273,-792.06,0.00019178,2]
[388566674,1759243852283,-151.0,0.00019178,2]
[388566675,1759243852292,-151.0,0.00019178,2]
[388566676,1759243852302,-151.0,0.00019178,2]
[388566677,1759243852312,-500.0,0.00019178,2]
[388566678,1759243852321,-500.0,0.00019178,2]
[388566679,1759243852330,-500.0,0.00019178,2]
[388566680,1759243852340,-1590.7,0.00019178,2]
[388566681,1759243852350,-1590.7,0.00019178,2]
[388566682,1759243852359,-500.0,0.00019178,2]
[388566683,1759243852368,-151.0,0.00019178,2]
[388566684,1759243852378,-500.0,0.00019178,2]
[388566685,1759243852387,-636.3,0.00019178,2]
[388566686,1759243852397,-705.59,0.00019178,2]
[388566687,1759243852406,-900.53,0.00019178,2]
[388566688,1759243852415,-2925.57,0.00019178,2]
[388566689,1759243852425,-500.0,0.00019178,2]
[388566690,1759243852435,-151.0,0.00019178,2]
[388566691,1759243852444,-2601.54,0.00019178,2]
[388566692,1759243852454,-578.37287863,0.00019178,2]
[388566693,1759243852463,-151.0,0.00019178,2]
[388566694,1759243852473,-500.0,0.00019178,2]
[388566695,1759243852484,-500.0,0.00019178,2]
[388566696,1759243852493,-1693.84,0.00019178,2]
[388566697,1759243852502,-151.0,0.00019178,2]
[388566698,1759243852511,-500.0,0.00019178,2]
[388566699,1759243852521,-151.575418,0.00019178,2]
[388566700,1759243852531,-500.0,0.00019178,2]
[388566701,1759243852540,-500.0,0.00019178,2]
[388566702,1759243852550,-500.0,0.00019178,2]
[388566703,1759243852559,-1076.9,0.00019178,2]
[388566704,1759243852568,-500.0,0.00019178,2]
[388566705,1759243852578,-500.0,0.00019178,2]
[388566706,1759243852589,-500.0,0.00019178,2]
[388566707,1759243852600,-500.0,0.00019178,2]
[388566708,1759243852609,-500.0,0.00019178,2]
[388566709,1759243852618,-500.0,0.00019178,2]
[388566710,1759243852628,-500.0,0.00019178,2]
[388566711,1759243852637,-500.0,0.00019178,2]
[388566712,1759243852647,-500.0,0.00019178,2]
[388566713,1759243852656,-506.09219334,0.00019178,2]
[388566714,1759243852665,-780.07,0.00019178,2]
[388566715,1759243852675,-500.0,0.00019178,2]
[388566716,1759243852684,-500.0,0.00019178,2]
[388566717,1759243852694,-500.0,0.00019178,2]
[388566718,1759243852703,-500.0,0.00019178,2]
[388566719,1759243852712,-500.0,0.00019178,2]
[388566720,1759243852722,-1487.72,0.00019178,2]
[388566721,1759243852732,-3712.54,0.00019178,2]
[388566722,1759243852742,-1380.28,0.00019178,2]
[388566723,1759243852751,-513.58,0.00019178,2]
[388566724,1759243852761,-512.86,0.00019178,2]
[388566725,1759243852771,-941.59,0.00019178,2]
[388566726,1759243852780,-714.53,0.00019178,2]
[388566727,1759243852790,-1392.68,0.00019178,2]
[388566728,1759243852800,-500.0,0.00019178,2]
[388566729,1759243852809,-500.0,0.00019178,2]
[388566730,1759243852819,-1238.43,0.00019178,2]
[388566731,1759243852828,-500.0,0.00019178,2]
[388566732,1759243852837,-500.0,0.00019178,2]
[388566733,1759243852847,-500.0,0.00019178,2]
[388566734,1759243852856,-840.76,0.00019178,2]
[388566735,1759243852866,-596.99,0.00019178,2]
[388566736,1759243852875,-500.0,0.00019178,2]
[388566737,1759243852885,-500.0,0.00019178,2]
[388566738,1759243852894,-808.21,0.00019178,2]
[388566739,1759243852903,-500.0,0.00019178,2]
[388566740,1759243852912,-500.0,0.00019178,2]
[388566741,1759243852922,-540.1,0.00019178,2]
[388566742,1759243852931,-540.1,0.00019178,2]
[388566743,1759243852940,-2070.05,0.00019178,2]
[388566744,1759243852950,-500.0,0.00019178,2]
[388566745,1759243852959,-560.58,0.00019178,2]
[388566746,1759243852969,-500.0,0.00019178,2]
[388566747,1759243852978,-500.0,0.00019178,2]
[388566748,1759243852988,-500.0,0.00019178,2]
[388566749,1759243852997,-500.0,0.00019178,2]
[388566750,1759243853007,-500.0,0.00019178,2]
[388566751,1759243853016,-500.0,0.00019178,2]
[388566752,1759243853029,-500.0,0.00019178,2]
[388566753,1759243853039,-500.0,0.00019178,2]
[388566754,1759243853049,-500.0,0.00019178,2]
[388566755,1759243853058,-817.6,0.00019178,2]
[388566756,1759243853068,-500.0,0.00019178,2]
[388566757,1759243853078,-500.0,0.00019178,2]
[388566758,1759243853088,-500.0,0.00019178,2]
[388566759,1759243853098,-500.0,0.00019178,2]
[388566760,1759243853108,-500.0,0.00019178,2]
[388566761,1759243853117,-500.0,0.00019178,2]
[388566762,1759243853127,-500.0,0.00019178,2]
[388566763,1759243853137,-5355.07,0.00019178,2]
[388566764,1759243853146,-2335.08,0.00019178,2]
[388566765,1759243853155,-500.0,0.00019178,2]
[388566766,1759243853164,-500.0,0.00019178,2]
[388566767,1759243853174,-1147.67,0.00019178,2]
[388566768,1759243853183,-2902.05,0.00019178,2]
[388566769,1759243853193,-500.0,0.00019178,2]
[388566770,1759243853203,-500.0,0.00019178,2]
[388566771,1759243853213,-3505.26,0.00019178,2]
[388566772,1759243853222,-500.0,0.00019178,2]
[388566773,1759243853231,-500.0,0.00019178,2]
[388566774,1759243853242,-500.0,0.00019178,2]
[388566775,1759243853251,-500.0,0.00019178,2]
[388566776,1759243853261,-500.0,0.00019178,2]
[388566777,1759243853270,-500.0,0.00019178,2]
[388566778,1759243853280,-500.0,0.00019178,2]
[388566779,1759243853290,-500.0,0.00019178,2]
[388566780,1759243853299,-500.0,0.00019178,2]
[388566781,1759243853308,-500.0,0.00019178,2]
[388566782,1759243853318,-500.0,0.00019178,2]
[388566783,1759243853327,-1760.32,0.00019178,2]
[388566784,1759243853337,-500.0,0.00019178,2]
[388566785,1759243853346,-509.08,0.00019178,2]
[388566786,1759243853356,-500.0,0.00019178,2]
[388566787,1759243853365,-500.0,0.00019178,2]
[388566788,1759243853375,-500.0,0.00019178,2]
[388566789,1759243853384,-3350.21,0.00019178,2]
[388566790,1759243853395,-500.0,0.00019178,2]
[388566791,1759243853404,-500.0,0.00019178,2]
[388566792,1759243853414,-500.0,0.00019178,2]
[388566793,1759243853424,-500.0,0.00019178,2]
[388566794,1759243853433,-237.28230293,0.00019178,2]
[388566795,1759243853443,-2164.5,0.00019178,2]
[388566796,1759243853453,-500.0,0.00019178,2]
[388566797,1759243853463,-621.6,0.00019178,2]
[388566798,1759243853485,-3511.46,0.00019178,2]
[388566799,1759243853495,-1195.98,0.00019178,2]
[388566800,1759243853505,-3353.46,0.00019178,2]
[388566801,1759243853515,-500.0,0.00019178,2]
[388566802,1759243853525,-1553.51,0.00019178,2]
[388566803,1759243853536,-1553.51,0.00019178,2]
[388566804,1759243853546,-1553.51,0.00019178,2]
[388566805,1759243853556,-1553.51,0.00019178,2]
[388566806,1759243853566,-500.0,0.00019178,2]
[388566807,1759243853576,-1553.51,0.00019178,2]
[388566808,1759243853586,-274.686923,0.00019178,2]
[388566809,1759243853596,-1553.51,0.00019178,2]
[388566810,1759243853606,-1599.6,0.00019178,2]
[388566811,1759243853616,-500.0,0.00019178,2]
[388566812,1759243853627,-1553.51,0.00019178,2]
[388566813,1759243853637,-1553.51,0.00019178,2]
[388566814,1759243853647,-1553.51,0.00019178,2]
[388566815,1759243853657,-1553.51,0.00019178,2]
[388566816,1759243853667,-1553.51,0.00019178,2]
[388566817,1759243853677,-1553.51,0.00019178,2]
[388566818,1759243853687,-1553.51,0.00019178,2]
[388566819,1759243853696,-1240.5,0.00019178,2]
[388566820,1759243853706,-1553.51,0.00019178,2]
[388566821,1759243853716,-1553.51,0.00019178,2]
[388566822,1759243853726,-1553.51,0.00019178,2]
[388566823,1759243853736,-500.0,0.00019178,2]
[388566824,1759243853746,-1553.51,0.00019178,2]
[388566825,1759243853756,-206.68241811,0.00019178,2]
[388566826,1759243853766,-1553.51,0.00019178,2]
[388566827,1759243853777,-1553.51,0.00019178,2]
[388566828,1759243853787,-1553.51,0.00019178,2]
[388566829,1759243853797,-1553.51,0.00019178,2]
[388566830,1759243853807,-1553.51,0.00019178,2]
[388566831,1759243853816,-5540.87,0.00019178,2]
[388566832,1759243853826,-1553.51,0.00019178,2]
[388566833,1759243853836,-1553.56641132,0.00019178,2]
[388566834,1759243854346,-500.0,0.00019178,2]
[388566835,1759243854356,-500.0,0.00019178,2]
[388566836,1759243854371,-805.73,0.00019178,2]
[388566837,1759243854380,-155.785656,0.00019178,2]
[388566838,1759243854390,-500.0,0.00019178,2]
[388566839,1759243854401,-2715.19,0.00019178,2]
[388566840,1759243854411,-1797.12,0.00019178,2]
[388566841,1759243854421,-155.785656,0.00019178,2]
[388566842,1759243854432,-6610.98,0.00019178,2]
[388566843,1759243854442,-500.0,0.00019178,2]
[388566844,1759243854452,-500.0,0.00019178,2]
[388566845,1759243854462,-705.44,0.00019178,2]
[388566846,1759243854471,-155.785656,0.00019178,2]
[388566847,1759243854482,-853.5,0.00019178,2]
[388566848,1759243854493,-500.0,0.00019178,2]
[388566849,1759243854503,-401.17854126,0.00019178,2]
[388566850,1759243854513,-155.785656,0.00019178,2]
[388566851,1759243854524,-550.77,0.00019178,2]
[388566852,1759243854534,-1575.48,0.00019178,2]
[388566853,1759243854545,-500.0,0.00019178,2]
[388566854,1759243854555,-500.0,0.00019178,2]
[388566855,1759243854566,-500.0,0.00019178,2]
[388566856,1759243854577,-5110.4,0.00019178,2]
[388566857,1759243854588,-500.0,0.00019178,2]
[388566858,1759243854599,-500.0,0.00019178,2]
[388566859,1759243854610,-500.0,0.00019178,2]
[388566860,1759243854620,-1675.3,0.00019178,2]
[388566861,1759243854630,-500.0,0.00019178,2]
[388566862,1759243854641,-500.0,0.00019178,2]
[388566863,1759243854651,-500.0,0.00019178,2]
[388566864,1759243854661,-500.0,0.00019178,2]
[388566865,1759243854671,-500.0,0.00019178,2]
[388566866,1759243854681,-1581.9,0.00019178,2]
[388566867,1759243854691,-612.19,0.00019178,2]
[388566868,1759243854702,-2157.08,0.00019178,2]
[388566869,1759243854712,-4283.19,0.00019178,2]
[388566870,1759243854722,-500.0,0.00019178,2]
[388566871,1759243854733,-1098.61,0.00019178,2]
[388566872,1759243854744,-500.0,0.00019178,2]
[388566873,1759243854754,-500.0,0.00019178,2]
[388566874,1759243854764,-586.61,0.00019178,2]
[388566875,1759243854775,-500.0,0.00019178,2]
[388566876,1759243854784,-2415.06,0.00019178,2]
[388566877,1759243854794,-500.0,0.00019178,2]
[388566878,1759243854804,-500.0,0.00019178,2]
[388566879,1759243854814,-5438.8,0.00019178,2]
[388566880,1759243854824,-1045.49,0.00019178,2]
[388566881,1759243854834,-500.0,0.00019178,2]
[388566882,1759243854844,-500.0,0.00019178,2]
[388566883,1759243854854,-957.45,0.00019178,2]
[388566884,1759243854864,-1286.78,0.00019178,2]
[388566885,1759243854874,-571.65,0.00019178,2]
[388566886,1759243854884,-1218.74,0.00019178,2]
[388566887,1759243854894,-500.0,0.00019178,2]
[388566888,1759243854905,-2166.0,0.00019178,2]
[388566889,1759243854915,-517.34229457,0.00019178,2]
[388566890,1759243854925,-5083.05,0.00019178,2]
[388566891,1759243854937,-4808.33,0.00019178,2]
[388566892,1759243854946,-2880.85,0.00019178,2]
[388566893,1759243854956,-883.74,0.00019178,2]
[388566894,1759243854966,-500.0,0.00019178,2]
[388566895,1759243854976,-500.0,0.00019178,2]
[388566896,1759243854986,-1373.2,0.00019178,2]
[388566897,1759243854996,-500.0,0.00019178,2]
[388566898,1759243855005,-500.0,0.00019178,2]
[388566899,1759243855015,-500.0,0.00019178,2]
[388566900,1759243855025,-500.0,0.00019178,2]
[388566901,1759243855039,-500.0,0.00019178,2]
[388566902,1759243855049,-500.0,0.00019178,2]
[388566903,1759243855059,-806.47,0.00019178,2]
[388566904,1759243855069,-549.1,0.00019178,2]
[388566905,1759243855079,-500.0,0.00019178,2]
[388566906,1759243855089,-1566.99,0.00019178,2]
[388566907,1759243855099,-500.0,0.00019178,2]
[388566908,1759243855111,-500.0,0.00019178,2]
[388566909,1759243855121,-5111.26,0.00019178,2]
[388566910,1759243855131,-500.0,0.00019178,2]
[388566911,1759243855141,-1000.0,0.00019178,2]
[388566912,1759243855151,-636.06,0.00019178,2]
[388566913,1759243855160,-500.0,0.00019178,2]
[388566914,1759243855170,-500.0,0.00019178,2]
[388566915,1759243855179,-598.08,0.00019178,2]
[388566916,1759243855189,-500.0,0.00019178,2]
[388566917,1759243855198,-2718.85,0.00019178,2]
[388566918,1759243855208,-151.0,0.00019178,2]
[388566919,1759243855218,-636.1,0.00019178,2]
[388566920,1759243855228,-3621.53,0.00019178,2]
[388566921,1759243855238,-158.657039,0.00019178,2]
[388566922,1759243855247,-2533.68,0.00019178,2]
[388566923,1759243855257,-1725.05,0.00019178,2]
[388566924,1759243855266,-3013.89,0.00019178,2]
[388566925,1759243855276,-804.58,0.00019178,2]
[388566926,1759243855286,-500.0,0.00019178,2]
[388566927,1759243855295,-500.0,0.00019178,2]
[388566928,1759243855305,-857.920883,0.00019178,2]
[388566929,1759243855315,-178.22971,0.00019178,2]
[388566930,1759243855325,-500.0,0.00019178,2]
[388566931,1759243855335,-1914.69,0.00019178,2]
[388566932,1759243855344,-857.920883,0.00019178,2]
[388566933,1759243855354,-500.0,0.00019178,2]
[388566934,1759243855363,-152.135929,0.00019178,2]
[388566935,1759243855372,-500.0,0.00019178,2]
[388566936,1759243855382,-500.0,0.00019178,2]
[388566937,1759243855392,-500.0,0.00019178,2]
[388566938,1759243855402,-857.920883,0.00019178,2]
[388566939,1759243855411,-152.135929,0.00019178,2]
[388566940,1759243855421,-1896.37,0.00019178,2]
[388566941,1759243855431,-859.8,0.00019178,2]
[388566942,1759243855441,-1627.92,0.00019178,2]
[388566943,1759243855450,-206.530796,0.00019178,2]
[388566944,1759243855460,-500.0,0.00019178,2]
[388566945,1759243855470,-857.920883,0.00019178,2]
[388566946,1759243855480,-152.135929,0.00019178,2]
[388566947,1759243855491,-4288.38,0.00019178,2]
[388566948,1759243855501,-500.0,0.00019178,2]
[388566949,1759243855510,-500.0,0.00019178,2]
[388566950,1759243855520,-500.0,0.00019178,2]
[388566951,1759243855530,-152.135929,0.00019178,2]
[388566952,1759243855540,-500.0,0.00019178,2]
[388566953,1759243855550,-4489.31,0.00019178,2]
[388566954,1759243855560,-206.530796,0.00019178,2]
[388566955,1759243855569,-2042.97,0.00019178,2]
[388566956,1759243855578,-206.530796,0.00019178,2]
[388566957,1759243855588,-151.0,0.00019178,2]
[388566958,1759243855598,-500.0,0.00019178,2]
[388566959,1759243855608,-206.530796,0.00019178,2]
[388566960,1759243855617,-428.04735968,0.00019178,2]
[388566961,1759243855627,-948.57,0.00019178,2]
[388566962,1759243855636,-151.0,0.00019178,2]
[388566963,1759243855646,-3509.0,0.00019178,2]
[388566964,1759243855656,-500.0,0.00019178,2]
[388566965,1759243855665,-1043.98,0.00019178,2]
[388566966,1759243855675,-151.0,0.00019178,2]
[388566967,1759243855684,-1002.99,0.00019178,2]
[388566968,1759243855694,-500.0,0.00019178,2]
[388566969,1759243855704,-3298.82,0.00019178,2]
[388566970,1759243855714,-1877.95,0.00019178,2]
[388566971,1759243855724,-500.0,0.00019178,2]
[388566972,1759243855734,-575.92,0.00019178,2]
[388566973,1759243855747,-595.256096,0.00019178,2]
[388566974,1759243855757,-2949.36,0.00019178,2]
[388566975,1759243855767,-4003.15,0.00019178,2]
[388566976,1759243855777,-500.0,0.00019178,2]
[388566977,1759243855787,-504.58,0.00019178,2]
[388566978,1759243855797,-500.0,0.00019178,2]
[388566979,1759243855807,-595.256096,0.00019178,2]
[388566980,1759243855816,-2276.63,0.00019178,2]
[388566981,1759243855826,-500.0,0.00019178,2]
[388566982,1759243855836,-500.0,0.00019178,2]
[388566983,1759243855846,-500.0,0.00019178,2]
[388566984,1759243855856,-595.256096,0.00019178,2]
[388566985,1759243855866,-595.256096,0.00019178,2]
[388566986,1759243855876,-500.0,0.00019178,2]
[388566987,1759243855886,-500.0,0.00019178,2]
[388566988,1759243855896,-551.58,0.00019178,2]
[388566989,1759243855906,-4579.72,0.00019178,2]
[388566990,1759243855915,-4326.28,0.00019178,2]
[388566991,1759243855925,-500.0,0.00019178,2]
[388566992,1759243855935,-500.0,0.00019178,2]
[388566993,1759243855945,-500.0,0.00019178,2]
[388566994,1759243855954,-4667.32,0.00019178,2]
[388566995,1759243855964,-2121.11,0.00019178,2]
[388566996,1759243855974,-151.0,0.00019178,2]
[388566997,1759243855983,-659.75,0.00019178,2]
[388566998,1759243855995,-151.0,0.00019178,2]
[388566999,1759243856005,-500.0,0.00019178,2]
[388567000,1759243856015,-500.0,0.00019178,2]
[388567001,1759243856026,-722.87,0.00019178,2]
[388567002,1759243856040,-692.75,0.00019178,2]
[388567003,1759243856050,-5020.85,0.00019178,2]
[388567004,1759243856060,-1899.13,0.00019178,2]
[388567005,1759243856070,-151.0,0.00019178,2]
[388567006,1759243856079,-3031.79,0.00019178,2]
[388567007,1759243856089,-500.0,0.00019178,2]
[388567008,1759243856098,-532.98,0.00019178,2]
[388567009,1759243856108,-1124.83,0.00019178,2]
[388567010,1759243856118,-1756.01,0.00019178,2]
[388567011,1759243856128,-715.28,0.00019178,2]
[388567012,1759243856138,-5421.88,0.00019178,2]
[388567013,1759243856147,-500.0,0.00019178,2]
[388567014,1759243856157,-500.0,0.00019178,2]
[388567015,1759243856166,-500.0,0.00019178,2]
[388567016,1759243856175,-155.447139,0.00019178,2]
[388567017,1759243856185,-248.082918,0.00019178,2]
[388567018,1759243856194,-248.082918,0.00019178,2]
[388567019,1759243856204,-4640.6,0.00019178,2]
[388567020,1759243856214,-431.96165594,0.00019178,2]
[388567021,1759243856224,-2742.48,0.00019178,2]
[388567022,1759243856233,-248.082918,0.00019178,2]
[388567023,1759243856245,-500.0,0.00019178,2]
[388567024,1759243856254,-500.0,0.00019178,2]
[388567025,1759243856264,-500.0,0.00019178,2]
[388567026,1759243856274,-248.082918,0.00019178,2]
[388567027,1759243856283,-3900.26,0.00019178,2]
[388567028,1759243856292,-199.12340755,0.00019178,2]
[388567029,1759243856302,-4877.04,0.00019178,2]
[388567030,1759243856311,-523.26,0.00019178,2]
[388567031,1759243856320,-500.0,0.00019178,2]
[388567032,1759243856330,-3168.12,0.00019178,2]
[388567033,1759243856340,-151.0,0.00019178,2]
[388567034,1759243856349,-500.0,0.00019178,2]
[388567035,1759243856358,-560.42,0.00019178,2]
[388567036,1759243856367,-1903.48,0.00019178,2]
[388567037,1759243856377,-221.81018688,0.00019178,2]
[388567038,1759243856387,-613.18639014,0.00019178,2]
[388567039,1759243856396,-2521.38,0.00019178,2]
[388567040,1759243856405,-500.0,0.00019178,2]
[388567041,1759243856414,-2806.65,0.00019178,2]
[388567042,1759243856424,-500.0,0.00019178,2]
[388567043,1759243856434,-151.0,0.00019178,2]
[388567044,1759243856443,-883.02,0.00019178,2]
[388567045,1759243856452,-500.0,0.00019178,2]
[388567046,1759243856461,-3713.1,0.00019178,2]
[388567047,1759243856471,-151.0,0.00019178,2]
[388567048,1759243856480,-2506.86,0.00019178,2]
[388567049,1759243856491,-751.89,0.00019178,2]
[388567050,1759243856501,-825.96,0.00019178,2]
[388567051,1759243856511,-151.0,0.00019178,2]
[388567052,1759243856520,-500.0,0.00019178,2]
[388567053,1759243856529,-151.0,0.00019178,2]
[388567054,1759243856539,-604.76,0.00019178,2]
[388567055,1759243856548,-500.0,0.00019178,2]
[388567056,1759243856558,-4055.75,0.00019178,2]
[388567057,1759243856567,-1918.23,0.00019178,2]
[388567058,1759243856577,-3017.79,0.00019178,2]
[388567059,1759243856586,-872.23,0.00019178,2]
[388567060,1759243856595,-500.0,0.00019178,2]
[388567061,1759243856605,-500.0,0.00019178,2]
[388567062,1759243856615,-151.0,0.00019178,2]
[388567063,1759243856624,-500.0,0.00019178,2]
[388567064,1759243856634,-500.0,0.00019178,2]
[388567065,1759243856643,-151.0,0.00019178,2]
[388567066,1759243856653,-500.0,0.00019178,2]
[388567067,1759243856663,-151.0,0.00019178,2]
[388567068,1759243856672,-500.0,0.00019178,2]
[388567069,1759243856681,-151.0,0.00019178,2]
[388567070,1759243856691,-500.0,0.00019178,2]
[388567071,1759243856700,-2034.94,0.00019178,2]
[388567072,1759243856709,-922.96,0.00019178,2]
[388567073,1759243856718,-500.0,0.00019178,2]
[388567074,1759243856870,-1339.37,0.00019178,2]
[388567075,1759243856880,-500.0,0.00019178,2]
[388567076,1759243856890,-151.0,0.00019178,2]
[388567077,1759243856899,-500.0,0.00019178,2]
[388567078,1759243856908,-500.0,0.00019178,2]
[388567079,1759243856917,-151.0,0.00019178,2]
[388567080,1759243856927,-500.0,0.00019178,2]
[388567081,1759243856936,-818.91,0.00019178,2]
[388567082,1759243856945,-3132.31,0.00019178,2]
[388567083,1759243856954,-311.809884,0.00019178,2]
[388567084,1759243856963,-500.0,0.00019178,2]
[388567085,1759243856972,-500.0,0.00019178,2]
[388567086,1759243856981,-311.809884,0.00019178,2]
[388567087,1759243856991,-3246.07,0.00019178,2]
[388567088,1759243857000,-500.0,0.00019178,2]
[388567089,1759243857009,-500.0,0.00019178,2]
[388567090,1759243857018,-2473.07,0.00019178,2]
[388567091,1759243857027,-311.809884,0.00019178,2]
[388567092,1759243857040,-311.809884,0.00019178,2]
[388567093,1759243857049,-3870.52,0.00019178,2]
[388567094,1759243857058,-500.0,0.00019178,2]
[388567095,1759243857067,-500.0,0.00019178,2]
[388567096,1759243857076,-500.0,0.00019178,2]
[388567097,1759243857085,-1087.57,0.00019178,2]
[388567098,1759243857094,-177.377123,0.00019178,2]
[388567099,1759243857103,-500.0,0.00019178,2]
[388567100,1759243857112,-4139.96,0.00019178,2]
[388567101,1759243857121,-1767.54,0.00019178,2]
[388567102,1759243857130,-500.0,0.00019178,2]
[388567103,1759243857139,-500.0,0.00019178,2]
[388567104,1759243857148,-189.657851,0.00019178,2]
[388567105,1759243857157,-500.0,0.00019178,2]
[388567106,1759243857167,-3201.03,0.00019178,2]
[388567107,1759243857175,-500.0,0.00019178,2]
[388567108,1759243857185,-500.0,0.00019178,2]
[388567109,1759243857194,-2034.42,0.00019178,2]
[388567110,1759243857203,-189.657851,0.00019178,2]
[388567111,1759243857213,-500.0,0.00019178,2]
[388567112,1759243857222,-189.657851,0.00019178,2]
[388567113,1759243857231,-958.22,0.00019178,2]
[388567114,1759243857242,-500.0,0.00019178,2]
[388567115,1759243857251,-500.0,0.00019178,2]
[388567116,1759243857261,-500.0,0.00019178,2]
[388567117,1759243857270,-189.657851,0.00019178,2]
[388567118,1759243857279,-513.462665,0.00019178,2]
[388567119,1759243857288,-2548.08,0.00019178,2]
[388567120,1759243857297,-500.0,0.00019178,2]
[388567121,1759243857306,-500.0,0.00019178,2]
[388567122,1759243857315,-177.377123,0.00019178,2]
[388567123,1759243857324,-4492.44,0.00019178,2]
[388567124,1759243857333,-2151.04,0.00019178,2]
[388567125,1759243857343,-513.462665,0.00019178,2]
[388567126,1759243857352,-151.667043,0.00019178,2]
[388567127,1759243857360,-500.0,0.00019178,2]
[388567128,1759243857373,-177.377123,0.00019178,2]
[388567129,1759243857384,-500.0,0.00019178,2]
[388567130,1759243857400,-513.462665,0.00019178,2]
[388567131,1759243857409,-4031.72,0.00019178,2]
[388567132,1759243857418,-177.377123,0.00019178,2]
[388567133,1759243857428,-500.0,0.00019178,2]
[388567134,1759243857437,-151.0,0.00019178,2]
[388567135,1759243857446,-2964.53,0.00019178,2]
[388567136,1759243857455,-500.0,0.00019178,2]
[388567137,1759243857465,-500.0,0.00019178,2]
[388567138,1759243857474,-513.462665,0.00019178,2]
[388567139,1759243857483,-500.0,0.00019178,2]
[388567140,1759243857495,-500.0,0.00019178,2]
[388567141,1759243857505,-151.0,0.00019178,2]
[388567142,1759243857514,-500.0,0.00019178,2]
[388567143,1759243857523,-500.0,0.00019178,2]
[388567144,1759243857532,-500.0,0.00019178,2]
[388567145,1759243857541,-3292.9,0.00019178,2]
[388567146,1759243857550,-151.0,0.00019178,2]
[388567147,1759243857560,-439.964211,0.00019178,2]
[388567148,1759243857570,-500.0,0.00019178,2]
[388567149,1759243857579,-526.92,0.00019178,2]
[388567150,1759243857588,-500.0,0.00019178,2]
[388567151,1759243857597,-3324.17,0.00019178,2]
[388567152,1759243857606,-439.964211,0.00019178,2]
[388567153,1759243857615,-500.0,0.00019178,2]
[388567154,1759243857625,-732.56,0.00019178,2]
[388567155,1759243857634,-2821.85,0.00019178,2]
[388567156,1759243857644,-439.964211,0.00019178,2]
[388567157,1759243857653,-1184.74,0.00019178,2]
[388567158,1759243857662,-898.43,0.00019178,2]
[388567159,1759243857672,-151.0,0.00019178,2]
[388567160,1759243857681,-583.0,0.00019178,2]
[388567161,1759243857691,-500.0,0.00019178,2]